[Event "FRA-ch 58 Championnat"]
[Site "Belfort"]
[Date "1983.08.22"]
[Round "10"]
[White "Preissmann, Emmanuel"]
[Black "Haik, Aldo"]
[Result "1/2-1/2"]
[ECO "B22"]
[WhiteElo "2360"]
[BlackElo "2400"]
[Annotator "Primel,D"]
[PlyCount "155"]
[EventDate "1983.08.12"]
[EventType "tourn"]
[EventRounds "15"]
[EventCountry "FRA"]
[EventCategory "2"]
[SourceTitle "EXT 2016"]
[Source "ChessBase"]
[SourceDate "2015.10.08"]
[SourceVersion "1"]
[SourceVersionDate "2015.10.08"]
[SourceQuality "1"]
[TimeControl "40/9000:16/5400:0"]

1. e4 c5 2. c3 Nf6 3. e5 Nd5 4. d4 cxd4 5. Nf3 e6 6. cxd4 d6 (6... b6 {
L'alternative} 7. Nc3) 7. Nc3 (7. Bc4 Nc6 8. Nc3 (8. O-O Be7 9. exd6 (9. Nc3
Nxc3 10. bxc3 dxe5 11. Nxe5 Nxe5) (9. Qe2 O-O 10. Nc3 (10. Qe4 Bd7 11. Bd3 (11.
Bxd5 exd5 12. Qxd5 Nb4 13. Qe4 Bc6 14. Qe2 Bxf3 15. Qxf3 (15. gxf3 Rc8 (15...
Qb6)) 15... Nc2)) 10... Nxc3 11. bxc3 dxe5 12. dxe5 Qa5) 9... Qxd6 10. Nc3 O-O
11. Re1 Rd8) 8... Nxc3 9. bxc3 dxe5 10. Nxe5 Nxe5 11. dxe5 Qxd1+) 7... Nxc3 8.
bxc3 Nc6 (8... Qc7 $142 {La grande ligne} 9. Bd2 Nd7 10. exd6 Bxd6 11. Bd3 b6
12. O-O Bb7 {[%cal Gd6h2,Gb7f3]} 13. Re1 O-O 14. h3 Bf4 $11) 9. exd6 Qxd6 (9...
Bxd6 $142) 10. Bd3 Be7 11. O-O O-O 12. Re1 b6 13. Ne5 (13. Rb1 Bb7 14. Ng5 Bxg5
15. Bxg5 Na5 16. Re3 Qd5 17. Rg3 f5 18. h4 Rac8 19. Qd2 Rf7 20. Bf4 Qd8 21. Re1
Bd5 22. h5 Bc4 23. Be5 Bxd3 24. Qh6 Rcc7 25. Qxe6 Bc4 26. Rxg7+ Kf8 27. Bxc7
Qxc7 {Spassky,B (2610)-Huebner,R (2600)/Solingen 1977/EXT 2002/1-0}) 13... Nxe5
14. Bf4 Qd7 15. Bxe5 {[%cal Gd3h7,Ge5g7] Avec des menaces réelles de double
sacrifices sur le roque noir ,en commençant par un "cadeau grec"Bh7!.} g6 16.
Re3 $40 {[%cal Ge3h3,Gd1h5]} Bb7 17. Qh5 $1 {[%cal Gh5h7,Ge3h3,Re3g3] Avec la
menace du pseudo sacrifice Qh7} f5 18. Qh6 Rf7 19. Rh3 (19. Rae1) (19. Rg3 {
[%cal Gh2h4,Gh4h5,Gg3g2,Gg3g6]} Bf6 $1) 19... Bf6 20. Bxf6 Rxf6 21. Qf4 Rc8 22.
Bf1 Rf7 23. a4 Bd5 24. Ba6 Rc7 25. Rg3 Bc4 $1 $132 26. Bxc4 Rxc4 27. h4 {
l'attaque arrive trop tard} Qc7 $15 28. Qxc7 $2 {La structure de pions des
blancs est trés faible} Rfxc7 29. Ra3 a6 30. h5 Kf7 31. hxg6+ hxg6 32. f4 Kf6
33. Kf2 Rh7 $1 34. Re3 Rh4 35. Kg3 Rh1 36. Rb3 Rc6 37. c4 {[%cal Gd4d5]} Rd1
38. c5 bxc5 39. dxc5 Rc1 40. Rec3 Rxc3+ $2 (40... Rxc5 $17) 41. Rxc3 e5 (41...
g5 42. fxg5+ Kxg5 {[%csl Ge6][%cal Ge6e1]}) 42. fxe5+ Kxe5 43. Kh4 Kf6 44. Rb3
$1 Rxc5 45. Rb6+ Ke5 46. Rxa6 Rc4+ 47. Kg3 g5 48. a5 Rc3+ (48... Ra4 {[%csl
Ra5,Ra6][%cal Ga4a3]}) 49. Kh2 Ra3 50. Ra8 (50. Rg6 $1 Kf4 51. a6 g4 {[%cal
Gg4g3]}) 50... Kf4 {l'activation des pièces noires doit donner quelques très
légères chances de gain qui justifient la poursuite de la partie.} 51. Rb8 Kg4
(51... Rxa5) 52. a6 Rxa6 53. Rb3 f4 54. Rc3 Ra2 55. Rb3 Kh5 56. Rf3 {
Ajournement} Kg6 57. Kg1 Kf5 58. Rb3 Ra1+ 59. Kf2 Ra2+ 60. Kf1 g4 61. Rb5+ {
[%csl Rf5]} Ke4 62. Rb8 Rc2 63. Ra8 Rc3 64. Kf2 g3+ 65. Kf1 Rc1+ 66. Ke2 Rg1
67. Re8+ Kf5 68. Rf8+ Ke5 69. Re8+ Kd5 70. Rd8+ Ke6 71. Kf3 Rf1+ 72. Kg4 Rf2 (
72... Ke5) 73. Ra8 Ke5 74. Ra1 Ke4 75. Ra4+ Ke3 76. Ra3+ Ke2 77. Ra1 Rxg2 78.
Kxf4 1/2-1/2

[Event "Rohde op 12th"]
[Site "Sautron"]
[Date "2012.10.29"]
[Round "4"]
[White "Zubarev, Alexander2"]
[Black "Colin, Vincent"]
[Result "1-0"]
[ECO "B22"]
[WhiteElo "2583"]
[BlackElo "2407"]
[Annotator "RR"]
[PlyCount "155"]
[EventDate "2012.10.27"]
[EventType "swiss"]
[EventRounds "9"]
[EventCountry "FRA"]
[SourceTitle "EXT 2014"]
[Source "ChessBase"]
[SourceDate "2013.11.20"]
[SourceVersion "1"]
[SourceVersionDate "2013.11.20"]
[SourceQuality "1"]
[TimeControl "40/5400+30:1800+30"]
[WhiteClock "1:30:00"]
[BlackClock "1:30:00"]

1. e4 {[%emt 0:00:00]} c5 {[%emt 0:00:00]} 2. c3 {[%emt 0:00:00]} d5 {[%emt 0:
00:24]} (2... Nf6) (2... b6 3. d4 Bb7 4. Bd3 Nf6 5. Nd2 cxd4 6. cxd4 g6 7. Ngf3
Bg7 8. O-O O-O 9. Re1 d6 $13 {Ferrufino,B (2259)-Bauer,C (2638) Turin ol (Men)
37th 2006 (1) 0-1}) 3. exd5 {[%emt 0:00:00]} Qxd5 {[%emt 0:00:11]} 4. d4 {
[%emt 0:00:05]} e6 {[%emt 0:00:15] Probablement la ligne la plus solide} (4...
g6 5. dxc5 (5. Nf3 Bg7 6. Na3 cxd4 7. Bc4) 5... Qxc5 6. Be3 Qc7 7. Bxa7 Rxa7 8.
Qd4 Nc6 9. Qxh8 Nf6) (4... Nf6) (4... Nc6) 5. Nf3 {[%emt 0:00:22]} Nf6 {
[%emt 0:00:13]} 6. Be2 {[%emt 0:03:42]} (6. Na3 {[%cal Gf1c4,Ga3b5]}) 6... Be7
{[%emt 0:01:06]} 7. O-O {[%emt 0:00:12]} O-O {[%emt 0:00:07]} (7... cxd4 8.
cxd4 Nc6 9. Nc3 Qd6 10. Nb5 Qd8 11. Bf4 Nd5 {[%cal Gd5f4,Gd5c7]} 12. Bg3 O-O {
Adams,M (2726)-Van Wely,L (2675) World op 39th 2011 (5) 1/2}) 8. c4 $1 {
[%emt 0:04:21]} (8. Ne5 cxd4 9. cxd4 Rd8 $132 {Pavasovic,D (2602)-Dreev,A 
(2662) CRO-chT1A 18th 2009 (1) 1/2}) 8... Qd7 {[%emt 0:01:45]} (8... Qd8 9. b3
(9. dxc5 Bxc5 10. Nc3 Nc6 11. a3 $14 {[%cal Gb2b4]}) 9... Nc6 10. Bb2 cxd4 11.
Nxd4 Nxd4 12. Qxd4 Qxd4 13. Bxd4 Bd7 14. Bf3 Bc6 15. Bxc6 bxc6 16. Nc3 c5 17.
Be3 Rfd8 18. Rad1 Nd7 19. Na4 Kf8 20. Rd2 Ke8 21. Rfd1 Rac8 22. f3 Rc7 23. Bf4
{Postny,E (2559)-Mortensen,E (2466)/playchess.com INT 2005/EXT 2007/1-0 (41)})
(8... Qf5 9. Nc3) 9. Nc3 {[%emt 0:01:20]} (9. dxc5 $5 Qxd1 10. Rxd1 Bxc5 11.
Nc3 Nc6 12. a3 b6 13. b4 Be7 14. Bf4 Bb7 15. Nb5 Rad8 16. Ne5 {Magem Badals,J 
(2560)-Ionescu,C (2545) Berga op 1995 (8) 1-0} (16. Bc7)) 9... Rd8 {[%emt 0:01:
30]} 10. dxc5 {[%emt 0:13:00] Fin de la préparation du GMI} (10. Nb5 $5 Nc6 (
10... a6 $2 11. Ne5) 11. Ne5 $1 Nxe5 12. dxe5 Qxd1 13. Rxd1 Rxd1+ 14. Bxd1 Nd7
15. Bf4 a6 16. Nd6 $36 {[%csl Rb7,Rc8,Rd7][%cal Gd1f3,Ga1d1]}) 10... Qxd1 {
[%emt 0:05:35]} 11. Bxd1 {[%emt 0:06:59]} (11. Rxd1 Rxd1+ 12. Bxd1 Bxc5 {
[%csl Rf2][%cal Gf6g4]} 13. Bf4 Ng4 14. Ne4 (14. Bg3)) 11... Bxc5 {[%emt 0:00:
40]} 12. a3 {[%emt 0:00:12]} (12. Bg5 $5 {Plus simple} b6 13. Ne4 Be7 14. Nxf6+
gxf6 15. Be3 Bb7 16. Be2 f5 17. Rfd1 $14 {Les Blancs ont des meilleures
perspectives en finale}) 12... b6 {[%emt 0:01:33]} 13. b4 {[%emt 0:03:13]} Be7
{[%emt 0:01:53]} 14. Be3 {[%emt 0:03:51]} (14. Bb2 Bb7 $11) 14... Bb7 {[%emt 0:
01:57]} 15. Nd2 {[%emt 0:04:24][%cal Gd1f3,Gd2c4] Les Blancs ont fait une
série de coups assez lents et Vincent va égaliser sans problèmes.} Nbd7 {
[%emt 0:02:30]} 16. Be2 {[%emt 0:01:27]} Ne5 $132 {[%emt 0:03:00][%csl Rd3]}
17. h3 {[%emt 0:04:00]} Nd3 {[%emt 0:01:53]} 18. Rfd1 {[%emt 0:03:51]} Rd7 {
[%emt 0:02:48]} (18... Nb2 $5 19. Rdb1 Nd3 {Gagne du temps avec l'incrément})
19. Nb3 {[%cal Ge2d3,Gc4c5]} Rad8 $11 20. Nb5 Ne4 21. Nxa7 $5 {Nécessitait un
calcul précis} Nc3 $13 22. Rd2 Bf6 {[%cal Gf6a1,Gc3e2]} (22... Nc1 $5 23. Rxc1
Rxd2 24. Bf1 Ne2+ 25. Bxe2 Rxe2 26. Bxb6 {[%csl Gc4]} Rd3 27. Nc5 Bxc5 28. Bxc5
Rxa3) 23. Bxd3 Rxd3 24. Re1 Ne4 25. Rxd3 Rxd3 26. Nc1 Rxa3 27. Bxb6 {[%csl Gb4,
Gc4]} (27. Nb5) 27... Nd6 28. Nb5 Nxb5 29. cxb5 Bc3 (29... Kf8 {[%cal Gf6c3]
Peut-être un ordre de coups plus précis}) 30. Rd1 $1 {[%csl Rg8]} Bd5 (30... g5
$6 {[%cal Gg8g7]} 31. Rd8+) 31. Ne2 Bxb4 $6 (31... Be5 {[%csl Gd5,Ge5,Gf4]})
32. Nf4 Ba5 33. Nxd5 exd5 34. Be3 Rb3 35. Rxd5 g6 (35... Kf8 {Plus solide}) 36.
g4 $1 Kf8 (36... Kg7 37. Bd4+) 37. Re5 (37. Kg2) 37... f6 $2 38. Bc5+ Kf7 39.
Re7+ $40 Kg8 40. Rb7 (40. b6 $1 Bxb6 (40... Rxh3 41. b7 Rb3 42. Ba7) 41. Rb7
$18) 40... Rxh3 41. Ra7 Rc3 42. Be3 Bc7 43. b6 Be5 44. Re7 Rb3 45. b7 {[%cal
Gf2f4]} g5 46. Kg2 Rb4 47. Kf3 Bd6 48. Re6 Be5 49. Rb6 $18 Rxb6 50. Bxb6 Kf7
51. Ba7 h5 52. gxh5 f5 53. b8=Q Bxb8 54. Bxb8 Kg7 55. Ke3 Kh6 56. Bc7 Kxh5 57.
Bd8 (57. Kf3) 57... Kg4 58. Be7 Kh5 59. Ke2 Kg4 60. Bd8 Kh5 61. Ke3 Kg4 62. Be7
Kh5 63. Kf3 Kg6 64. Bb4 Kh5 65. Kg3 Kg6 66. Bd2 Kh5 67. Kf3 Kg6 68. Bc1 Kh5 69.
Be3 Kg6 70. Bd2 Kh5 71. Be1 $1 Kg6 72. Ke3 Kh5 73. Kd4 Kh4 74. Kd5 Kh3 75. Ke6
Kg4 76. Ke5 f4 77. Ke4 Kh3 78. Kf5 1-0

[Event "Sautron op 16th"]
[Site "Sautron"]
[Date "2016.10.22"]
[Round "4.4"]
[White "Bedouin, Xavier"]
[Black "Stets, Dmitry"]
[Result "0-1"]
[ECO "B22"]
[WhiteElo "2353"]
[BlackElo "2436"]
[Annotator "RR"]
[PlyCount "86"]
[EventDate "2016.10.22"]
[EventType "swiss"]
[EventRounds "9"]
[EventCountry "FRA"]
[SourceTitle "EXT 2019"]
[Source "ChessBase"]
[SourceDate "2018.10.10"]
[SourceVersion "1"]
[SourceVersionDate "2018.10.10"]
[SourceQuality "1"]
[TimeControl "40/5400+30:1800+30"]
[WhiteClock "0:27:18"]
[BlackClock "0:24:22"]

1. e4 {[%emt 0:00:07]} c5 {[%emt 0:00:00]} 2. c3 {[%emt 0:00:14]} Nf6 {[%emt 0:
00:01]} (2... d5) (2... g6) 3. e5 {[%emt 0:00:19]} Nd5 {[%emt 0:00:15]} 4. Nf3
{[%emt 0:00:14]} Nc6 {[%emt 0:00:14]} 5. Bc4 {[%emt 0:00:17]} e6 {[%emt 0:00:
23]} (5... Nb6 6. Bb3 c4 7. Bc2 Qc7 (7... d6)) 6. d4 {[%emt 0:00:16]} cxd4 {
[%emt 0:00:15]} 7. cxd4 {[%emt 0:00:14]} d6 {[%emt 0:00:13]} 8. O-O {[%emt 0:
00:26]} Be7 {[%emt 0:00:18]} 9. exd6 {[%emt 0:00:28]} Qxd6 {[%emt 0:00:11]} 10.
Nc3 {[%emt 0:00:16]} O-O {[%emt 0:00:59]} 11. Re1 {[%emt 0:00:21]} Nxc3 {
[%emt 0:11:15]} 12. bxc3 {[%emt 0:00:30]} b6 {[%emt 0:00:28]} 13. Ng5 {[%emt 0:
00:43]} (13. Bd3 Bb7 14. Qe2 g6 15. Qe3 Bf6 16. Qh6 Bg7 17. Qh4 Ne7 18. Ng5 h5
19. Be4 Nf5 20. Qh3 Bxe4 21. Nxe4 Qd5 22. Bg5 f6 23. Bd2 Rac8 24. a4 Rc6 25.
Qd3 Rfc8 26. h3 Kf7 27. Qb5 Bf8 28. Rab1 Be7 29. Qa6 Qd7 30. Qb5 g5 31. Qe2 Rh8
32. Rb5 Rcc8 33. g3 Qc6 34. Qd3 Qc4 35. Qf3 g4 36. Qf4 gxh3 37. Rxf5 exf5 38.
Qxf5 Rcg8 39. Qd7 Kf8 40. Nd6 h2+ 41. Kxh2 {1-0 (41) Radjabov,T (2710)
-Moiseenko,A (2648) Bastia 2016}) 13... Bxg5 {[%emt 0:04:39]} 14. Bxg5 {
[%emt 0:00:11]} Bb7 {[%emt 0:06:15]} 15. Qg4 {[%emt 0:00:59]} Rfe8 {[%emt 0:10:
59]} 16. Re3 {[%emt 0:39:09] 40 mns de réflexion!} Ne7 {[%emt 0:09:03]} 17.
Rae1 {[%emt 0:10:52]} Ng6 {[%emt 0:09:41]} 18. Bd3 {[%emt 0:07:48]} Rac8 $146 {
[%emt 0:14:46]} (18... Rec8 19. Bxg6 hxg6 20. Bf4 Qd5 21. Be5 Qxa2 22. Rh3 Qd2
23. Rd1 Qc2 24. Rf1 Rxc3 25. f3 Qf5 26. Qh4 f6 27. Qh7+ Kf7 28. g4 Qg5 29. f4
Qxg4+ {0-1 (29) Tscharotschkin,M (2220)-Kveinys,A (2511) Bad Woerishofen 2004})
19. h4 {[%emt 0:07:52]} Qd7 {[%emt 0:10:49]} 20. h5 $36 {[%emt 0:13:52]} f5 {
[%emt 0:00:22]} (20... Nf8 21. h6 $36) 21. Qg3 {[%emt 0:02:09]} Nf8 {[%emt 0:
00:33]} 22. Bb1 {[%emt 0:01:31]} Bd5 $1 {[%emt 0:01:44][%csl Gc4,Gd5][%cal
Gd5e6]} 23. Bf4 {[%emt 0:00:14]} Qf7 {[%emt 0:00:39]} 24. Qh4 {[%emt 0:02:53]}
Nd7 {[%emt 0:01:48]} 25. Rg3 {[%emt 0:00:54]} Nf6 {[%emt 0:01:27]} 26. h6 {
[%emt 0:03:40]} g6 {[%emt 0:00:31]} 27. Bg5 {[%emt 0:01:31]} Nd7 {[%emt 0:00:
49]} (27... Ne4) 28. Rge3 {[%emt 0:00:24]} Rc6 {[%emt 0:00:56]} 29. Qg3 {
[%emt 0:02:24] Les pièces Blanches sont très actives} Rec8 {[%emt 0:00:27]}
30. Bf4 {[%emt 0:01:12]} Nf6 {[%emt 0:01:40]} 31. Qh3 {[%emt 0:00:56]} b5 {
[%emt 0:04:00][%csl Rc3]} 32. Be5 $6 {[%emt 0:01:08]} Ng4 $1 {[%emt 0:00:38]
Sans la paire de B, l'attaque Blanche est moins dangereuse} 33. Rg3 {[%emt 0:
00:15]} Nxe5 {[%emt 0:00:38]} 34. dxe5 {[%emt 0:00:58]} Qc7 $132 {[%emt 0:01:
20]} 35. Rd1 {[%emt 0:01:29]} Qxe5 {[%emt 0:01:51]} (35... Rxc3 36. Bxf5 exf5
37. Rxd5) 36. Re3 {[%emt 0:00:17]} Qf6 $17 {[%emt 0:00:34]} 37. Rd4 {[%emt 0:
00:28]} Rc4 {[%emt 0:00:48]} 38. Red3 {[%emt 0:00:40]} b4 $1 $19 {[%emt 0:01:
45] Les Noirs gagent du matériel et la position Blanche s'effondre} 39. Qe3 {
[%emt 0:00:02]} Rxc3 {[%emt 0:01:41]} 40. Rxb4 {[%emt 0:00:00]} Rc1+ {[%emt 0:
00:00]} 41. Kh2 {[%emt 0:02:07]} g5 {[%emt 0:10:20]} 42. Qxa7 {[%emt 0:03:12]}
Qxh6+ {[%emt 0:01:41]} 43. Rh3 {[%emt 0:00:40]} Rh1+ {[%emt 0:00:12]} 0-1

[Event "Tata Steel-B 79th"]
[Site "Wijk aan Zee"]
[Date "2017.01.28"]
[Round "12"]
[White "Jones, Gawain C B"]
[Black "Dobrov, Vladimir"]
[Result "1-0"]
[ECO "B22"]
[WhiteElo "2665"]
[BlackElo "2499"]
[Annotator "Ramirez Alvarez,A"]
[PlyCount "55"]
[EventDate "2017.01.14"]
[EventType "tourn"]
[EventRounds "13"]
[EventCountry "NED"]
[EventCategory "14"]
[SourceTitle "CBM 177"]
[Source "ChessBase"]
[SourceDate "2017.03.16"]
[SourceVersion "1"]
[SourceVersionDate "2017.03.16"]
[SourceQuality "1"]
[TimeControl "40/6000+30:20/3000+30:900+30"]

1. e4 {[%emt 0:00:00]} c5 {[%emt 0:00:33]} 2. Nf3 {[%emt 0:00:13]} e6 {[%emt 0:
01:14]} 3. c3 {[%emt 0:00:44]} d5 {[%emt 0:00:08]} 4. exd5 {[%emt 0:00:12]}
Qxd5 {[%emt 0:00:05]} 5. d4 {[%emt 0:01:18]} Nf6 {[%emt 0:00:06]} 6. Na3 {
[%emt 0:00:27]} Nc6 {[%emt 0:00:07]} 7. Be3 {[%emt 0:00:28]} cxd4 {[%emt 0:01:
16]} 8. Nb5 {[%emt 0:00:09]} Qd8 {[%emt 0:00:19]} 9. Nbxd4 {[%emt 0:00:14]} Nd5
{[%emt 0:00:52]} 10. Nxc6 {[%emt 0:02:02]} bxc6 {[%emt 0:00:07]} 11. Bd4 {
[%emt 0:00:12]} f6 {[%emt 0:00:06]} 12. Bc4 {[%emt 0:01:07]} Bd6 {[%emt 0:03:
51]} 13. Nd2 $146 {[%emt 0:01:31]} (13. O-O O-O 14. Re1 Kh8 15. Bb3 c5 16. Be3
Bb7 17. Bd2 Re8 18. Bc2 Qc7 19. Qe2 Rad8 20. Qe4 f5 21. Qh4 h6 22. Ba4 Re7 23.
Rad1 Kg8 24. c4 Nb6 25. Bc2 Bxf3 26. gxf3 Rf8 27. Bc3 Bf4 28. b3 e5 29. Bd2
Bxd2 30. Rxd2 Rf6 31. Red1 Nd7 32. Bxf5 Nf8 33. Be4 Ne6 34. Rd6 Rf4 35. Qh5 Nd4
36. Qg6 Kf8 37. Kh1 Ref7 38. Bd5 R7f6 39. Rxf6+ Rxf6 40. Qh7 Nf5 41. Rg1 Qd6
42. f4 e4 {Dauth,B (2322)-Szelag,M (2464) Germany 2011 1-0 (61)}) 13... e5 {
[%emt 0:00:38]} 14. Qa4 {[%emt 0:01:30]} Bd7 {[%emt 0:09:21]} 15. Ne4 {[%emt 0:
00:29]} Qb8 {[%emt 0:03:24]} 16. Be3 {[%emt 0:14:39]} Nxe3 {[%emt 0:03:45]} 17.
fxe3 {[%emt 0:06:43]} Be7 {[%emt 0:00:03]} 18. O-O-O {[%emt 0:04:18]} Qb6 {
[%emt 0:30:08]} 19. Bf7+ {[%emt 0:01:55]} Kxf7 {[%emt 0:00:05]} 20. Rxd7 {
[%emt 0:00:05]} Rhb8 {[%emt 0:00:12]} 21. Qc4+ {[%emt 0:06:31]} Kf8 {[%emt 0:
00:17]} 22. b4 {[%emt 0:11:23]} Qxe3+ {[%emt 0:09:23]} 23. Kb1 {[%emt 0:02:07]}
Rb5 $4 {[%emt 0:00:46]} (23... Qh6 $13) 24. Nd6 {[%emt 0:09:45]} Rd5 {[%emt 0:
00:24]} 25. Rxe7 $1 {[%emt 0:00:47]} Rd8 {[%emt 0:00:04]} 26. Rf7+ {[%emt 0:00:
38]} Kg8 {[%emt 0:00:07]} 27. Rxg7+ {[%emt 0:00:11]} Kh8 {[%emt 0:00:08]} 28.
Rg3 {[%emt 0:00:26]} 1-0